{"text_format":"3","workbook":"xlsx","n_sheets":2,"sheets":["Λεπτομέρειες προσφοράς","Σύνοψη"],"not_rendered":{"charts":1,"images":1,"defined_names":4,"pivot_tables":1},"read":"whole","date_system":"1900"}

{"sheet":"Λεπτομέρειες προσφοράς","index":0,"n_rows":9,"n_cols":8,"rows_kept":9}
[null,"Λεπτομέρειες προσφοράς",{"$nulls":5},"Σύνοψη"]
[null,"ΑΡ. ΠΡΟΣΦΟΡΑΣ","ΠΕΡΙΓΡΑΦΗ","ΗΜΕΡΟΜΗΝΙΑ ΛΗΨΗΣ","ΠΟΣΟ","ΠΟΣΟΣΤΟ ΟΛΟΚΛΗΡΩΣΗΣ","ΠΡΟΘΕΣΜΙΑ","ΗΜΕΡΕΣ ΠΟΥ ΑΠΟΜΕΝΟΥΝ"]
[null,1,"Αριθμός προσφοράς 1",{"$f":"TODAY()-10","v":"2017-07-07"},{"v":2000,"d":"2,000.00 €"},{"v":0.5,"d":"50%"},{"$f":"ΠληροφορίεςΠροσφοράς[[#This Row],[ΗΜΕΡΟΜΗΝΙΑ ΛΗΨΗΣ]]+30","v":"2017-08-06"},{"$f":"ΠληροφορίεςΠροσφοράς[[#This Row],[ΠΡΟΘΕΣΜΙΑ]]-TODAY()","v":20}]
[null,2,"Αριθμός προσφοράς 2",{"$f":"TODAY()-20","v":"2017-06-27"},{"v":3500,"d":"3,500.00 €"},{"v":0.25,"d":"25%"},{"$f":"ΠληροφορίεςΠροσφοράς[[#This Row],[ΗΜΕΡΟΜΗΝΙΑ ΛΗΨΗΣ]]+30","v":"2017-07-27"},{"$f":"ΠληροφορίεςΠροσφοράς[[#This Row],[ΠΡΟΘΕΣΜΙΑ]]-TODAY()","v":10}]
[null,3,"Αριθμός προσφοράς 3",{"$f":"TODAY()-20","v":"2017-06-27"},{"v":5000,"d":"5,000.00 €"},{"v":0.3,"d":"30%"},{"$f":"ΠληροφορίεςΠροσφοράς[[#This Row],[ΗΜΕΡΟΜΗΝΙΑ ΛΗΨΗΣ]]+30","v":"2017-07-27"},{"$f":"ΠληροφορίεςΠροσφοράς[[#This Row],[ΠΡΟΘΕΣΜΙΑ]]-TODAY()","v":10}]
[null,4,"Αριθμός προσφοράς 4",{"$f":"TODAY()-10","v":"2017-07-07"},{"v":4000,"d":"4,000.00 €"},{"v":0.2,"d":"20%"},{"$f":"ΠληροφορίεςΠροσφοράς[[#This Row],[ΗΜΕΡΟΜΗΝΙΑ ΛΗΨΗΣ]]+30","v":"2017-08-06"},{"$f":"ΠληροφορίεςΠροσφοράς[[#This Row],[ΠΡΟΘΕΣΜΙΑ]]-TODAY()","v":20}]
[null,5,"Αριθμός προσφοράς 5",{"$f":"TODAY()-28","v":"2017-06-19"},{"v":4000,"d":"4,000.00 €"},{"v":0.75,"d":"75%"},{"$f":"ΠληροφορίεςΠροσφοράς[[#This Row],[ΗΜΕΡΟΜΗΝΙΑ ΛΗΨΗΣ]]+30","v":"2017-07-19"},{"$f":"ΠληροφορίεςΠροσφοράς[[#This Row],[ΠΡΟΘΕΣΜΙΑ]]-TODAY()","v":2}]
[null,6,"Αριθμός προσφοράς 6",{"$f":"TODAY()-17","v":"2017-06-30"},{"v":1500,"d":"1,500.00 €"},{"v":0.45,"d":"45%"},{"$f":"ΠληροφορίεςΠροσφοράς[[#This Row],[ΗΜΕΡΟΜΗΝΙΑ ΛΗΨΗΣ]]+30","v":"2017-07-30"},{"$f":"ΠληροφορίεςΠροσφοράς[[#This Row],[ΠΡΟΘΕΣΜΙΑ]]-TODAY()","v":13}]
[null,7,"Αριθμός προσφοράς 7",{"$f":"TODAY()-15","v":"2017-07-02"},{"v":5000,"d":"5,000.00 €"},{"v":0.65,"d":"65%"},{"$f":"ΠληροφορίεςΠροσφοράς[[#This Row],[ΗΜΕΡΟΜΗΝΙΑ ΛΗΨΗΣ]]+30","v":"2017-08-01"},{"$f":"ΠληροφορίεςΠροσφοράς[[#This Row],[ΠΡΟΘΕΣΜΙΑ]]-TODAY()","v":15}]

{"sheet":"Σύνοψη","index":1,"n_rows":10,"n_cols":6,"rows_kept":10}
[null,"Ημέρες που απομένουν για προσφορές",{"$nulls":3},"Λεπτομέρειες προσφοράς"]
[]
[null,null,"ΑΡ. ΠΡΟΣΦΟΡΑΣ","ΗΜΕΡΕΣ ΠΟΥ ΑΠΟΜΕΝΟΥΝ "]
[null,null,1,20]
[null,null,2,10]
[null,null,3,10]
[null,null,4,20]
[null,null,5,2]
[null,null,6,13]
[null,null,7,15]